fUST/lending_fUST_20250722
["ID","MTS","AMOUNT","RATE_DAILY","PERIOD"]
[373891427,1753140642483,-460.0,0.00018041,2]
[373891429,1753140642492,-460.0,0.00018041,2]
[373891431,1753140642502,-460.0,0.00018041,2]
[373891433,1753140642511,-460.0,0.00018041,2]
[373891435,1753140642520,-460.0,0.00018041,2]
[373891437,1753140642529,-460.0,0.00018041,2]
[373891439,1753140642538,-460.0,0.00018041,2]
[373891441,1753140642548,-460.0,0.00018041,2]
[373891443,1753140642557,-460.0,0.00018041,2]
[373891445,1753140642567,-460.0,0.00018041,2]
[373891447,1753140642576,-460.0,0.00018041,2]
[373891449,1753140642585,-500.0,0.00018041,2]
[373891451,1753140642595,-460.0,0.00018041,2]
[373891453,1753140642604,-310.43988614,0.00018041,2]
[373891455,1753140642613,-460.0,0.00018041,2]
[373891457,1753140642622,-3416.98,0.00018041,2]
[373891459,1753140642632,-460.0,0.00018041,2]
[373891461,1753140642643,-460.0,0.00018041,2]
[373891463,1753140642652,-460.0,0.00018041,2]
[373891465,1753140642661,-460.0,0.00018041,2]
[373891467,1753140642670,-460.0,0.00018041,2]
[373891468,1753140642680,-460.0,0.00018041,2]
[373891470,1753140642689,-291.26490317,0.00018041,2]
[373891472,1753140642699,-460.0,0.00018041,2]
[373891474,1753140642708,-460.0,0.00018041,2]
[373891476,1753140642717,-460.0,0.00018041,2]
[373891478,1753140642726,-460.0,0.00018041,2]
[373891480,1753140642735,-460.0,0.00018041,2]
[373891482,1753140642745,-460.0,0.00018041,2]
[373891484,1753140642754,-460.0,0.00018041,2]
[373891486,1753140642763,-460.0,0.00018041,2]
[373891488,1753140642772,-460.0,0.00018041,2]
[373891490,1753140642782,-460.0,0.00018041,2]
[373891492,1753140642791,-466.91962471,0.00018041,2]
[373891494,1753140642800,-460.0,0.00018041,2]
[373891496,1753140642809,-460.0,0.00018041,2]
[373891498,1753140642819,-527.338015,0.00018041,2]
[373891500,1753140642828,-460.0,0.00018041,2]
[373891502,1753140642837,-460.0,0.00018041,2]
[373891503,1753140642846,-460.0,0.00018041,2]
[373891505,1753140642855,-460.0,0.00018041,2]
[373891507,1753140642864,-661.93,0.00018041,2]
[373891509,1753140642874,-460.0,0.00018041,2]
[373891511,1753140642883,-477.47,0.00018041,2]
[373891513,1753140642896,-3942.78,0.00018041,2]
[373891515,1753140642905,-460.0,0.00018041,2]
[373891517,1753140642914,-463.87600892,0.00018041,2]
[373891519,1753140642923,-460.0,0.00018041,2]
[373891521,1753140642932,-460.0,0.00018041,2]
[373891523,1753140642942,-1045.76,0.00018041,2]
[373891525,1753140642951,-460.0,0.00018041,2]
[373891527,1753140642961,-615.08,0.00018041,2]
[373891529,1753140642970,-460.0,0.00018041,2]
[373891531,1753140642979,-460.0,0.00018041,2]
[373891533,1753140642988,-211.00552267,0.00018041,2]
[373891535,1753140642997,-460.0,0.00018041,2]
[373891537,1753140643008,-460.0,0.00018041,2]
[373891539,1753140643017,-460.0,0.00018041,2]
[373891541,1753140643026,-460.0,0.00018041,2]
[373891544,1753140643035,-460.0,0.00018041,2]
[373891547,1753140643044,-863.37,0.00018041,2]
[373891548,1753140643054,-3770.82,0.00018041,2]
[373891550,1753140643063,-460.0,0.00018041,2]
[373891561,1753140643152,-819.49,0.00018041,2]
[373891563,1753140643161,-460.0,0.00018041,2]
[373891565,1753140643171,-460.0,0.00018041,2]
[373891566,1753140643180,-460.0,0.00018041,2]
[373891568,1753140643189,-174.02728654,0.00018041,2]
[373891570,1753140643198,-460.0,0.00018041,2]
[373891572,1753140643208,-460.0,0.00018041,2]
[373891574,1753140643217,-460.0,0.00018041,2]
[373891576,1753140643226,-460.0,0.00018041,2]
[373891578,1753140643235,-480.36,0.00018041,2]
[373891580,1753140643245,-460.0,0.00018041,2]
[373891582,1753140643254,-460.0,0.00018041,2]
[373891584,1753140643267,-2179.8,0.00018041,2]
[373891586,1753140643276,-545.87082031,0.00018041,2]
[373891588,1753140643286,-460.0,0.00018041,2]
[373891590,1753140643297,-508.61,0.00018041,2]
[373891592,1753140643306,-484.85,0.00018041,2]
[373891594,1753140643315,-1540.02,0.00018041,2]
[373891596,1753140643324,-460.0,0.00018041,2]
[373891598,1753140643334,-460.0,0.00018041,2]
[373891600,1753140643344,-460.0,0.00018041,2]
[373891602,1753140643353,-568.51,0.00018041,2]
[373891604,1753140643363,-6763.12,0.00018041,2]
[373891606,1753140643372,-460.0,0.00018041,2]
[373891608,1753140643382,-747.93,0.00018041,2]
[373891610,1753140643393,-908.02,0.00018041,2]
[373891612,1753140643402,-530.24978864,0.00018041,2]
[373891614,1753140643411,-2563.4,0.00018041,2]
[373891616,1753140643421,-460.0,0.00018041,2]
[373891617,1753140643430,-460.0,0.00018041,2]
[373891619,1753140643439,-460.0,0.00018041,2]
[373891621,1753140643448,-460.0,0.00018041,2]
[373891623,1753140643458,-632.45,0.00018041,2]
[373891625,1753140643467,-460.0,0.00018041,2]
[373891627,1753140643476,-460.0,0.00018041,2]
[373891629,1753140643486,-460.0,0.00018041,2]
[373891631,1753140643495,-508.59,0.00018041,2]
[373891633,1753140643504,-999.79,0.00018041,2]
[373891635,1753140643514,-460.0,0.00018041,2]
[373891637,1753140643523,-460.0,0.00018041,2]
[373891639,1753140643532,-476.54,0.00018041,2]
[373891641,1753140643541,-500.0,0.00018042,2]
[373891643,1753140643551,-460.0,0.00018042,2]
[373891645,1753140643560,-460.0,0.00018042,2]
[373891647,1753140643569,-460.0,0.00018042,2]
[373891648,1753140643578,-460.0,0.00018042,2]
[373891650,1753140643587,-460.0,0.00018042,2]
[373891652,1753140643596,-460.0,0.00018042,2]
[373891654,1753140643606,-460.0,0.00018042,2]
[373891656,1753140643615,-891.32,0.00018042,2]
[373891658,1753140643625,-460.0,0.00018042,2]
[373891660,1753140643634,-460.0,0.00018042,2]
[373891662,1753140643644,-460.0,0.00018042,2]
[373891664,1753140643653,-460.0,0.00018042,2]
[373891666,1753140643663,-460.0,0.00018042,2]
[373891668,1753140643672,-477.98,0.00018042,2]
[373891670,1753140643681,-460.0,0.00018042,2]
[373891672,1753140643689,-460.0,0.00018042,2]
[373891674,1753140643699,-460.0,0.00018042,2]
[373891676,1753140643708,-460.0,0.00018042,2]
[373891678,1753140643717,-460.0,0.00018042,2]
[373891680,1753140643727,-460.0,0.00018042,2]
[373891682,1753140643736,-460.0,0.00018042,2]
[373891684,1753140643745,-460.0,0.00018042,2]
[373891686,1753140643755,-1337.23,0.00018042,2]
[373891688,1753140643764,-460.0,0.00018042,2]
[373891690,1753140643773,-460.0,0.00018042,2]
[373891691,1753140643783,-460.0,0.00018042,2]
[373891693,1753140643792,-460.0,0.00018042,2]
[373891695,1753140643802,-460.0,0.00018042,2]
[373891697,1753140643811,-460.0,0.00018042,2]
[373891699,1753140643820,-460.0,0.00018042,2]
[373891701,1753140643830,-460.0,0.00018042,2]
[373891703,1753140643839,-460.0,0.00018042,2]
[373891705,1753140643849,-460.0,0.00018042,2]
[373891707,1753140643858,-460.0,0.00018042,2]
[373891709,1753140643867,-460.0,0.00018042,2]
[373891711,1753140643876,-460.0,0.00018042,2]
[373891713,1753140643885,-460.0,0.00018042,2]
[373891715,1753140643895,-460.0,0.00018042,2]
[373891717,1753140643904,-460.0,0.00018042,2]
[373891719,1753140643914,-460.0,0.00018042,2]
[373891721,1753140643923,-1000.0,0.00018046,2]
[373891723,1753140643932,-500.0,0.00018073,2]
[373891725,1753140643941,-500.0,0.00018073,2]
[373891726,1753140643951,-249.19020882,0.00018073,2]
[373891728,1753140643960,-563.81,0.00018079,2]
[373891730,1753140643970,-3942.302754,0.0001808,2]
[373891732,1753140643979,-4782.8061377,0.00018082,2]
[373891734,1753140643988,-560.7721542,0.0001814,2]
[373891736,1753140643997,-331.78272404,0.0001814,2]
[373891738,1753140644007,-460.0,0.0001814,2]
[373891740,1753140644016,-460.0,0.0001814,2]
[373891742,1753140644026,-460.0,0.0001814,2]
[373891744,1753140644035,-460.0,0.0001814,2]
[373891746,1753140644044,-587.28626161,0.0001814,2]
[373891748,1753140644053,-460.0,0.0001814,2]
[373891750,1753140644063,-460.0,0.0001814,2]
[373891752,1753140644073,-460.0,0.0001814,2]
[373891754,1753140644082,-460.0,0.0001814,2]
[373891756,1753140644092,-460.0,0.0001814,2]
[373891758,1753140644102,-460.0,0.0001814,2]
[373891760,1753140644111,-460.0,0.0001814,2]
[373891762,1753140644120,-460.0,0.0001814,2]
[373891763,1753140644129,-460.0,0.0001814,2]
[373891765,1753140644138,-460.0,0.0001814,2]
[373891767,1753140644148,-460.0,0.0001814,2]
[373891769,1753140644157,-460.0,0.0001814,2]
[373891771,1753140644167,-460.0,0.0001814,2]
[373891773,1753140644177,-460.0,0.0001814,2]
[373891775,1753140644186,-475.17,0.0001814,2]
[373891777,1753140644196,-460.0,0.0001814,2]
[373891779,1753140644207,-460.0,0.0001814,2]
[373891781,1753140644216,-608.05,0.0001814,2]
[373891783,1753140644226,-714.49,0.0001814,2]
[373891785,1753140644236,-460.0,0.0001814,2]
[373891787,1753140644245,-460.0,0.0001814,2]
[373891789,1753140644254,-460.0,0.0001814,2]
[373891791,1753140644268,-460.0,0.0001814,2]
[373891793,1753140644278,-460.0,0.0001814,2]
[373891795,1753140644287,-473.15,0.0001814,2]
[373891797,1753140644296,-460.0,0.0001814,2]
[373891799,1753140644306,-995.06,0.0001814,2]
[373891801,1753140644316,-460.0,0.0001814,2]
[373891803,1753140644325,-460.0,0.0001814,2]
[373891805,1753140644336,-460.0,0.0001814,2]
[373891807,1753140644345,-460.0,0.0001814,2]
[373891809,1753140644354,-460.0,0.0001814,2]
[373891811,1753140644364,-460.0,0.0001814,2]
[373891813,1753140644373,-1002.52,0.0001814,2]
[373891815,1753140644383,-460.0,0.0001814,2]
[373891817,1753140644393,-904.47,0.0001814,2]
[373891818,1753140644403,-842.93,0.0001814,2]
[373891820,1753140644412,-460.0,0.0001814,2]
[373891822,1753140644421,-1466.53,0.0001814,2]
[373891824,1753140644431,-460.0,0.0001814,2]
[373891826,1753140644440,-460.0,0.0001814,2]
[373891828,1753140644449,-460.0,0.0001814,2]
[373891830,1753140644459,-460.0,0.0001814,2]
[373891832,1753140644468,-460.0,0.0001814,2]
[373891834,1753140644478,-460.0,0.0001814,2]
[373891836,1753140644486,-460.0,0.0001814,2]
[373891838,1753140644496,-460.0,0.0001814,2]
[373891840,1753140644505,-460.0,0.0001814,2]
[373891842,1753140644515,-311.49285654,0.0001814,2]
[373891844,1753140644524,-460.0,0.0001814,2]
[373891846,1753140644533,-460.0,0.0001814,2]
[373891848,1753140644542,-460.0,0.0001814,2]
[373891850,1753140644551,-460.0,0.0001814,2]
[373891860,1753140644639,-401.829995,0.0001814,2]
[373891862,1753140644648,-460.0,0.0001814,2]
[373891863,1753140644658,-681.98,0.0001814,2]
[373891865,1753140644667,-460.0,0.0001814,2]
[373891867,1753140644679,-1019.82,0.0001814,2]
[373891869,1753140644688,-1245.38,0.0001814,2]
[373891871,1753140644696,-460.0,0.0001814,2]
[373891873,1753140644705,-700.42,0.0001814,2]
[373891875,1753140644714,-681.52,0.0001814,2]
[373891877,1753140644724,-519.27,0.0001814,2]
[373891879,1753140644733,-460.0,0.0001814,2]
[373891881,1753140644743,-460.0,0.00018141,2]
[373891883,1753140644752,-154.87130904,0.00018141,2]
[373891885,1753140644761,-460.0,0.00018141,2]
[373891887,1753140644770,-151.0,0.00018141,2]
[373891889,1753140644779,-151.0,0.00018141,2]
[373891891,1753140644789,-8389.27005442,0.00018141,2]
[373891893,1753140644799,-1750.53,0.00018142,2]
[373891895,1753140644808,-563.81,0.00018142,2]
[373891897,1753140644817,-1045.06,0.00018142,2]
[373891898,1753140644827,-460.0,0.00018142,2]
[373891900,1753140644836,-1642.26,0.00018142,2]
[373891902,1753140644845,-460.0,0.00018142,2]
[373891904,1753140644854,-151.0,0.00018143,2]
[373891906,1753140644863,-460.0,0.00018143,2]
[373891907,1753140644873,-460.0,0.00018143,2]
[373891908,1753140644882,-151.0,0.00018143,2]
[373891909,1753140644892,-460.0,0.00018143,2]
[373891910,1753140644901,-460.0,0.00018143,2]
[373891911,1753140644910,-460.0,0.00018143,2]
[373891912,1753140644919,-460.0,0.00018143,2]
[373891913,1753140644929,-460.0,0.00018143,2]
[373891914,1753140644938,-460.0,0.00018143,2]
[373891915,1753140644947,-460.0,0.00018143,2]
[373891916,1753140644957,-460.0,0.00018143,2]
[373891917,1753140644966,-460.0,0.00018143,2]
[373891918,1753140644975,-6853.84,0.00018143,2]
[373891919,1753140644984,-563.81,0.00018143,2]
[373891920,1753140644994,-1820.72,0.00018143,2]
[373891921,1753140645003,-460.0,0.00018143,2]
[373891922,1753140645012,-2086.57,0.00018143,2]
[373891923,1753140645021,-563.81,0.00018144,2]
[373891924,1753140645031,-3241.4,0.00018144,2]
[373891925,1753140645040,-611.95,0.00018144,2]
[373891926,1753140645050,-460.0,0.00018144,2]
[373891927,1753140645059,-151.348336,0.00018145,2]
[373891928,1753140645068,-151.0,0.00018145,2]
[373891929,1753140645077,-151.0,0.00018145,2]
[373891930,1753140645086,-151.0,0.00018145,2]
[373891931,1753140645095,-151.0,0.00018146,2]
[373891932,1753140645105,-186.032,0.00018146,2]
[373891933,1753140645114,-186.032,0.00018146,2]
[373891934,1753140645123,-1986.06,0.00018146,2]
[373891935,1753140645132,-460.0,0.00018146,2]
[373891936,1753140645142,-460.0,0.00018146,2]
[373891937,1753140645151,-151.0,0.00018146,2]
[373891939,1753140645161,-289.654597,0.00018146,2]
[373891941,1753140645170,-151.0,0.00018146,2]
[373891943,1753140645180,-151.0,0.00018146,2]
[373891945,1753140645189,-152.132934,0.00018146,2]
[373891947,1753140645199,-1753.0,0.0001815,2]
[373891949,1753140645209,-1753.0,0.0001815,2]
[373891951,1753140645218,-154.0,0.0001815,2]
[373891953,1753140645229,-1753.0,0.0001815,2]
[373891955,1753140645238,-1753.0,0.0001815,2]
[373891957,1753140645249,-1280.31498431,0.0001815,2]
[373891960,1753140645261,-1753.0,0.0001815,2]
[373891961,1753140645271,-324.0,0.0001815,2]
[373891963,1753140645280,-324.0,0.0001815,2]
[373891965,1753140645289,-324.0,0.0001815,2]
[373891967,1753140645299,-324.0,0.0001815,2]
[373891969,1753140645309,-324.0,0.0001815,2]
[373891971,1753140645319,-563.81,0.00018157,2]
[373891973,1753140645329,-2373.76,0.00018158,2]
[373891975,1753140645339,-1158.85,0.00018158,2]
[373891977,1753140645349,-563.81,0.00018163,2]
[373891979,1753140645359,-563.81,0.00018163,2]
[373891981,1753140645368,-563.81,0.00018163,2]
[373891983,1753140645377,-563.81,0.00018163,2]
[373891985,1753140645386,-564.02573757,0.00018163,2]
[373891987,1753140645396,-151.0,0.00018166,2]
[373891989,1753140645405,-1172.0,0.00018168,2]
[373891991,1753140645414,-151.0,0.00018168,2]
[373891993,1753140645424,-500.0,0.00018168,2]
[373891995,1753140645433,-500.0,0.00018168,2]
[373891997,1753140645443,-866.0,0.00018168,2]
[373891999,1753140645452,-151.0,0.00018168,2]
[373892001,1753140645461,-151.0,0.00018168,2]
[373892003,1753140645471,-220.44796763,0.00018168,2]
[373892005,1753140645480,-151.0,0.00018168,2]
[373892007,1753140645491,-3771.58945438,0.00018207,2]
[373892009,1753140645500,-900.0,0.00018235,2]
[373892011,1753140645509,-288.0,0.00018275,2]
[373892013,1753140645519,-500.0,0.00018296,2]
[373892015,1753140645528,-500.0,0.00018296,2]
[373892017,1753140645538,-500.0,0.00018296,2]
[373892019,1753140645547,-460.0,0.00018314,2]
[373892021,1753140645556,-460.0,0.00018314,2]
[373892023,1753140645566,-298.22907856,0.00018315,2]
[373892025,1753140645576,-460.0,0.00018315,2]
[373892027,1753140645585,-460.0,0.00018315,2]
[373892029,1753140645594,-460.0,0.00018315,2]
[373892031,1753140645604,-460.0,0.00018315,2]
[373892033,1753140645614,-460.0,0.00018315,2]
[373892035,1753140645624,-357.0252242,0.00018315,2]
[373892037,1753140645633,-460.0,0.00018315,2]
[373892039,1753140645643,-460.0,0.00018315,2]
[373892041,1753140645652,-460.0,0.00018315,2]
[373892043,1753140645662,-460.0,0.00018315,2]
[373892045,1753140645671,-460.0,0.00018315,2]
[373892047,1753140645680,-538.46388973,0.00018315,2]
[373892049,1753140645689,-460.0,0.00018315,2]
[373892051,1753140645699,-460.0,0.00018315,2]
[373892053,1753140645708,-460.0,0.00018315,2]
[373892055,1753140645718,-460.0,0.00018315,2]
[373892057,1753140645728,-460.0,0.00018315,2]
[373892059,1753140645737,-460.0,0.00018315,2]
[373892061,1753140645747,-460.61265846,0.00018315,2]
[373892063,1753140645756,-460.0,0.00018315,2]
[373892065,1753140645766,-460.0,0.00018315,2]
[373892067,1753140645775,-460.0,0.00018315,2]
[373892069,1753140645784,-460.0,0.00018315,2]
[373892072,1753140645794,-460.0,0.00018315,2]
[373892074,1753140645804,-188.5140922,0.00018315,2]
[373892076,1753140645813,-460.0,0.00018315,2]
[373892078,1753140645823,-460.0,0.00018315,2]
[373892080,1753140645832,-460.0,0.00018315,2]
[373892082,1753140645842,-460.0,0.00018315,2]
[373892084,1753140645851,-311.1917748,0.00018315,2]
[373892086,1753140645861,-460.0,0.00018315,2]
[373892088,1753140645870,-460.0,0.00018315,2]
[373892090,1753140645880,-460.0,0.00018315,2]
[373892092,1753140645890,-460.0,0.00018315,2]
[373892094,1753140645900,-460.0,0.00018315,2]
[373892096,1753140645909,-460.0,0.00018315,2]
[373892098,1753140645919,-460.0,0.00018315,2]
[373892100,1753140645928,-460.0,0.00018315,2]
[373892110,1753140646016,-3416.98,0.00018315,2]
[373892112,1753140646026,-460.0,0.00018315,2]
[373892114,1753140646036,-460.0,0.00018315,2]
[373892116,1753140646046,-460.0,0.00018315,2]
[373892118,1753140646055,-512.82836319,0.00018315,2]
[373892120,1753140646065,-460.0,0.00018315,2]
[373892122,1753140646075,-460.0,0.00018315,2]
[373892124,1753140646084,-462.93964972,0.00018315,2]
[373892126,1753140646094,-460.0,0.00018315,2]
[373892128,1753140646103,-460.0,0.00018315,2]
[373892130,1753140646112,-460.0,0.00018315,2]
[373892132,1753140646122,-460.0,0.00018315,2]
[373892134,1753140646131,-460.0,0.00018315,2]
[373892136,1753140646142,-460.0,0.00018315,2]
[373892138,1753140646152,-661.93,0.00018315,2]
[373892140,1753140646161,-151.0,0.00018315,2]
[373892142,1753140646170,-460.0,0.00018315,2]
[373892144,1753140646179,-151.0,0.00018315,2]
[373892146,1753140646188,-477.47,0.00018315,2]
[373892148,1753140646198,-151.0,0.00018315,2]
[373892150,1753140646208,-3942.78,0.00018315,2]
[373892152,1753140646217,-460.0,0.00018315,2]
[373892154,1753140646227,-460.0,0.00018315,2]
[373892156,1753140646236,-1045.76,0.00018315,2]
[373892158,1753140646245,-460.0,0.00018315,2]
[373892160,1753140646255,-151.0,0.00018315,2]
[373892162,1753140646267,-615.08,0.00018315,2]
[373892164,1753140646277,-460.0,0.00018315,2]
[373892166,1753140646286,-460.0,0.00018315,2]
[373892168,1753140646296,-460.0,0.00018315,2]
[373892170,1753140646306,-460.0,0.00018315,2]
[373892172,1753140646315,-151.0,0.00018315,2]
[373892174,1753140646324,-863.37,0.00018315,2]
[373892176,1753140646334,-218.210532,0.00018315,2]
[373892178,1753140646343,-3770.82,0.00018315,2]
[373892180,1753140646352,-460.0,0.00018315,2]
[373892182,1753140646362,-819.49,0.00018315,2]
[373892184,1753140646372,-460.0,0.00018315,2]
[373892186,1753140646381,-460.0,0.00018315,2]
[373892188,1753140646391,-460.0,0.00018315,2]
[373892190,1753140646400,-460.0,0.00018315,2]
[373892192,1753140646409,-460.0,0.00018315,2]
[373892194,1753140646418,-460.0,0.00018315,2]
[373892196,1753140646428,-460.0,0.00018315,2]
[373892198,1753140646437,-480.36,0.00018315,2]
[373892200,1753140646447,-460.0,0.00018315,2]
[373892202,1753140646456,-2179.8,0.00018315,2]
[373892204,1753140646465,-460.0,0.00018315,2]
[373892206,1753140646475,-508.61,0.00018315,2]
[373892208,1753140646484,-484.85,0.00018315,2]
[373892209,1753140646493,-1540.02,0.00018315,2]
[373892211,1753140646504,-460.0,0.00018315,2]
[373892213,1753140646513,-460.0,0.00018315,2]
[373892215,1753140646523,-568.51,0.00018315,2]
[373892217,1753140646532,-6763.12,0.00018315,2]
[373892219,1753140646542,-460.0,0.00018315,2]
[373892221,1753140646552,-747.93,0.00018315,2]
[373892223,1753140646561,-908.02,0.00018315,2]
[373892225,1753140646570,-2563.4,0.00018315,2]
[373892227,1753140646580,-460.0,0.00018315,2]
[373892229,1753140646589,-460.0,0.00018315,2]
[373892231,1753140646598,-460.0,0.00018315,2]
[373892234,1753140646608,-632.45,0.00018315,2]
[373892235,1753140646617,-460.0,0.00018315,2]
[373892237,1753140646627,-460.0,0.00018315,2]
[373892239,1753140646636,-460.0,0.00018315,2]
[373892241,1753140646646,-508.59,0.00018315,2]
[373892243,1753140646655,-999.79,0.00018315,2]
[373892245,1753140646664,-460.0,0.00018315,2]
[373892247,1753140646673,-476.54,0.00018315,2]
[373892249,1753140646683,-151.0,0.00018315,2]
[373892251,1753140646692,-500.0,0.00018316,2]
[373892253,1753140646701,-460.0,0.00018316,2]
[373892255,1753140646711,-541.77170341,0.00018316,2]
[373892257,1753140646720,-460.0,0.00018316,2]
[373892259,1753140646730,-460.0,0.00018316,2]
[373892261,1753140646739,-460.0,0.00018316,2]
[373892263,1753140646748,-460.0,0.00018316,2]
[373892265,1753140646757,-460.0,0.00018316,2]
[373892267,1753140646767,-891.32,0.00018316,2]
[373892269,1753140646777,-460.0,0.00018316,2]
[373892271,1753140646787,-460.0,0.00018316,2]
[373892273,1753140646796,-460.0,0.00018316,2]
[373892275,1753140646806,-460.0,0.00018316,2]
[373892277,1753140646815,-460.0,0.00018316,2]
[373892280,1753140646825,-477.98,0.00018316,2]
[373892281,1753140646834,-460.0,0.00018316,2]
[373892283,1753140646844,-460.0,0.00018316,2]
[373892285,1753140646853,-476.21034506,0.00018316,2]
[373892287,1753140646863,-460.0,0.00018316,2]
[373892290,1753140646872,-460.0,0.00018316,2]
[373892291,1753140646882,-460.0,0.00018316,2]
[373892294,1753140646891,-151.0,0.00018316,2]
[373892296,1753140646901,-1337.23,0.00018316,2]
[373892298,1753140646911,-151.0,0.00018316,2]
[373892300,1753140646920,-460.0,0.00018316,2]
[373892302,1753140646929,-460.0,0.00018316,2]
[373892304,1753140646939,-460.0,0.00018316,2]
[373892306,1753140646948,-460.0,0.00018316,2]
[373892308,1753140646957,-342.22579245,0.00018316,2]
[373892310,1753140646966,-460.0,0.00018316,2]
[373892312,1753140646975,-460.0,0.00018316,2]
[373892314,1753140646985,-460.0,0.00018316,2]
[373892316,1753140646994,-191.739403,0.00018316,2]
[373892317,1753140647003,-151.0,0.00018316,2]
[373892319,1753140647013,-460.0,0.00018316,2]
[373892321,1753140647022,-460.0,0.00018316,2]
[373892323,1753140647032,-191.739403,0.00018316,2]
[373892325,1753140647041,-460.0,0.00018316,2]
[373892327,1753140647051,-460.0,0.00018316,2]
[373892329,1753140647061,-460.0,0.00018316,2]
[373892332,1753140647071,-460.0,0.00018316,2]
[373892334,1753140647083,-460.0,0.00018316,2]
[373892336,1753140647092,-460.0,0.00018316,2]
[373892338,1753140647102,-151.0,0.00018316,2]
[373892340,1753140647112,-151.0,0.00018316,2]
[373892342,1753140647121,-151.0,0.00018316,2]
[373892343,1753140647130,-291.33809974,0.00018336,2]
[373892345,1753140647139,-512.65705704,0.00018336,2]
[373892347,1753140647149,-500.0,0.00018336,2]
[373892349,1753140647158,-151.0,0.00018336,2]
[373892351,1753140647167,-151.0,0.00018336,2]
[373892353,1753140647177,-162.87687527,0.00018352,2]
[373892355,1753140647186,-500.0,0.00018352,2]
[373892357,1753140647195,-500.67621022,0.00018352,2]
[373892367,1753140647269,-500.0,0.00018362,2]
[373892369,1753140647286,-500.0,0.00018362,2]
[373892371,1753140647296,-504.22089586,0.00018362,2]
[373892373,1753140647307,-500.0,0.00018365,2]
[373892375,1753140647316,-633.22142403,0.00018365,2]
[373892377,1753140647326,-442.7335692,0.00018367,2]
[373892379,1753140647336,-605.61594054,0.0001837,2]
[373892381,1753140647346,-150.0,0.00018374,2]
[373892383,1753140647355,-500.0,0.00018378,2]
[373892385,1753140647364,-620.27002591,0.00018378,2]
[373892387,1753140647373,-500.0,0.00018378,2]
[373892389,1753140647383,-8389.27005442,0.00018383,2]
[373892391,1753140647392,-151.0,0.00018383,2]
[373892393,1753140647402,-460.0,0.00018414,2]
[373892395,1753140647411,-460.0,0.00018414,2]
[373892397,1753140647421,-460.0,0.00018414,2]
[373892399,1753140647430,-460.0,0.00018414,2]
[373892401,1753140647439,-460.0,0.00018414,2]
[373892403,1753140647448,-460.0,0.00018414,2]
[373892405,1753140647458,-460.0,0.00018414,2]
[373892407,1753140647467,-460.0,0.00018414,2]
[373892409,1753140647476,-460.0,0.00018414,2]
[373892411,1753140647485,-460.0,0.00018414,2]
[373892413,1753140647494,-460.0,0.00018414,2]
[373892415,1753140647504,-460.0,0.00018414,2]
[373892417,1753140647513,-460.0,0.00018414,2]